bitfinex/quotes_BTCUSD_20230404
["timestamp","ask_amount","ask_price","bid_price","bid_amount"]
[1680580596999,0.00432994,27877.0,27876.0,1.24802421]
[1680580597223,0.00432994,27877.0,27876.0,1.75693477]
[1680580597451,0.00432994,27877.0,27876.0,1.75705477]
[1680580597665,0.00432994,27877.0,27876.0,1.75711477]
[1680580597879,0.00432994,27877.0,27876.0,1.75705477]
[1680580598090,0.00432994,27877.0,27876.0,1.75657477]
[1680580598312,0.00432994,27877.0,27876.0,1.75669477]
[1680580598540,0.00432994,27877.0,27876.0,1.75737091]
[1680580598774,0.00432994,27877.0,27876.0,1.75683091]
[1680580598996,0.00432994,27877.0,27876.0,2.16906989]
[1680580599251,0.00432994,27877.0,27876.0,2.16918989]
[1680580599468,0.00432994,27877.0,27876.0,2.16864989]
[1680580599682,0.00432994,27877.0,27876.0,2.16816989]
[1680580599889,0.00432994,27877.0,27876.0,2.16810989]
[1680580600105,0.00432994,27877.0,27876.0,1.91081091]
[1680580600551,0.00432994,27877.0,27876.0,2.34755989]
[1680580600759,0.00432994,27877.0,27876.0,2.34779989]
[1680580600964,0.00432994,27877.0,27876.0,2.34767989]
[1680580601177,0.00432994,27877.0,27876.0,2.51289091]
[1680580601407,0.00432994,27877.0,27876.0,2.52193091]
[1680580601620,0.00432994,27877.0,27876.0,2.52163091]
[1680580601844,0.00432994,27877.0,27876.0,2.52079091]
[1680580602063,0.38587893,27886.0,27880.0,0.00097614]
[1680580602064,0.00015,27883.0,27880.0,0.00097614]
[1680580602281,0.00025315,27885.0,27882.0,0.81143399]
[1680580602492,0.00025315,27885.0,27884.0,0.523189]
[1680580602705,0.00025315,27885.0,27884.0,0.68588599]
[1680580602918,0.00025315,27885.0,27884.0,1.11482415]
[1680580603152,0.00025315,27885.0,27884.0,0.80682802]
[1680580603366,0.00025315,27885.0,27884.0,1.16129858]
[1680580603581,0.00025315,27885.0,27884.0,1.59530485]
[1680580603932,0.00025315,27885.0,27884.0,1.28948406]
[1680580604151,0.00025315,27885.0,27884.0,1.46155155]
[1680580604351,0.00025315,27885.0,27884.0,1.16129858]
[1680580604780,0.00025315,27885.0,27884.0,1.48526902]
[1680580605049,0.00025315,27885.0,27884.0,1.48544902]
[1680580605271,0.00025315,27885.0,27884.0,1.51338902]
[1680580605471,0.00025315,27885.0,27884.0,1.18935858]
[1680580605724,0.00025315,27885.0,27884.0,1.18929858]
[1680580605899,0.00025315,27885.0,27884.0,1.50472782]
[1680580606103,0.19902386,27887.0,27886.0,0.3768]
[1680580606343,0.19902386,27887.0,27886.0,0.62104104]
[1680580606564,0.19902386,27887.0,27886.0,0.58406104]
[1680580606775,0.19902386,27887.0,27886.0,0.58412104]
[1680580606995,0.19902386,27887.0,27886.0,0.58406104]
[1680580607639,0.19927701,27887.0,27886.0,0.58406104]
[1680580607852,0.19927701,27887.0,27886.0,0.58382104]
[1680580608068,0.19927701,27887.0,27886.0,0.58388104]
[1680580608293,0.19927701,27887.0,27886.0,0.72155029]
[1680580608481,0.19927701,27887.0,27886.0,0.70649029]
[1680580608717,0.19927701,27887.0,27886.0,0.72849029]
[1680580608924,0.00025315,27887.0,27886.0,0.72855029]
[1680580609131,0.00025315,27887.0,27886.0,0.72849029]
[1680580609336,0.00025315,27887.0,27886.0,0.72867029]
[1680580609546,0.00025315,27887.0,27886.0,0.72879029]
[1680580609764,0.00025315,27887.0,27886.0,0.72873029]
[1680580609983,0.00025315,27887.0,27886.0,0.72879029]
[1680580610190,0.00025315,27887.0,27886.0,0.72891029]
[1680580610408,0.00025315,27887.0,27886.0,0.72885029]
[1680580610867,0.00025315,27887.0,27886.0,0.72879029]
[1680580611079,0.00025315,27887.0,27886.0,0.72885029]
[1680580611294,0.00025315,27887.0,27886.0,0.72897029]
[1680580611524,0.00025315,27887.0,27886.0,0.72879029]
[1680580611963,0.00025315,27887.0,27886.0,0.72885029]
[1680580612238,0.00025315,27887.0,27886.0,0.68985325]
[1680580612452,0.00025315,27887.0,27886.0,0.69009325]
[1680580612665,0.00025315,27887.0,27886.0,0.68997325]
[1680580612891,0.00025315,27887.0,27886.0,0.69003325]
[1680580613319,0.00025315,27887.0,27886.0,0.69009325]
[1680580613527,0.00025315,27887.0,27886.0,0.69003325]
[1680580613707,0.00025315,27887.0,27886.0,0.69021325]
[1680580613878,0.00025315,27887.0,27886.0,0.69027325]
[1680580614091,0.00025315,27887.0,27886.0,0.69039325]
[1680580614362,0.00025315,27887.0,27886.0,0.69045325]
[1680580614582,0.00025315,27887.0,27886.0,0.69081325]
[1680580614810,0.22190386,27888.0,27886.0,0.69075325]
[1680580615027,0.22190386,27888.0,27887.0,0.431338]
[1680580615899,0.22190386,27888.0,27887.0,0.3768]
[1680580616345,0.22215701,27888.0,27887.0,0.426109]
[1680580616588,0.22215701,27888.0,27887.0,0.441109]
[1680580617458,0.59910262,27888.0,27887.0,0.015]
[1680580618373,0.60627362,27888.0,27887.0,0.015]
[1680580618611,0.59910262,27888.0,27887.0,0.015]
[1680580619930,0.60627362,27888.0,27887.0,0.015]
[1680580621723,0.60627362,27888.0,27884.0,0.12417337]
[1680580621949,0.0773,27887.0,27884.0,0.12417337]
[1680580622167,0.08472415,27887.0,27884.0,0.12417337]
[1680580622397,0.08472415,27887.0,27884.0,0.04284]
[1680580622847,0.08472415,27887.0,27883.0,0.18797917]
[1680580623097,0.07850415,27887.0,27884.0,0.052674]
[1680580623338,0.078251,27887.0,27883.0,0.18809917]
[1680580623553,0.078251,27887.0,27884.0,0.04284]
[1680580623769,0.078251,27887.0,27884.0,0.04278]
[1680580624002,0.35332386,27885.0,27884.0,0.002]
[1680580624230,0.36774686,27885.0,27882.0,0.00018]
[1680580624495,0.0773,27883.0,27881.0,0.00018]
[1680580624719,0.0773,27882.0,27881.0,0.09086559]
[1680580626604,0.0773,27882.0,27881.0,0.00118]
[1680580627475,0.0773,27882.0,27881.0,0.12563456]
[1680580628134,0.0773,27882.0,27881.0,0.12809456]
[1680580628372,0.0773,27882.0,27881.0,0.17693566]
[1680580628811,0.0773,27882.0,27881.0,0.17939566]
[1680580628929,0.0773,27882.0,27881.0,0.17693566]
[1680580629366,0.0773,27882.0,27881.0,0.12563456]
[1680580630238,0.0773,27882.0,27881.0,0.12809456]
[1680580630451,0.0773,27882.0,27881.0,0.12797456]
[1680580630672,0.45932672,27884.0,27881.0,0.12803456]
[1680580631103,0.45932672,27884.0,27881.0,0.21353155]
[1680580631385,0.45932672,27884.0,27881.0,0.21247155]
[1680580631529,0.45932672,27884.0,27881.0,0.21359155]
[1680580631951,0.45932672,27884.0,27881.0,0.12803456]
[1680580632183,0.00025315,27886.0,27883.0,0.20554548]
[1680580632409,0.02288,27888.0,27885.0,0.08546692]
[1680580632636,0.02288,27888.0,27886.0,0.053323]
[1680580633519,0.02288,27888.0,27886.0,0.075323]
[1680580633731,0.02288,27888.0,27887.0,0.10639599]
[1680580635285,0.44028314,27888.0,27887.0,0.002]
[1680580635966,0.44028314,27888.0,27885.0,0.42357152]
[1680580636202,0.44128314,27888.0,27887.0,0.001]
[1680580636662,0.36418314,27888.0,27887.0,0.001]
[1680580637347,0.51878314,27888.0,27887.0,0.001]
[1680580637571,0.57366301,27888.0,27887.0,0.001]
[1680580637832,1.08563486,27888.0,27887.0,0.001]
[1680580638059,1.08563486,27888.0,27883.0,0.08546692]
[1680580638060,0.19902386,27884.0,27883.0,0.08546692]
[1680580638285,0.27622386,27884.0,27883.0,0.08564692]
[1680580638948,0.28342786,27884.0,27883.0,0.08546692]
[1680580639185,0.27622386,27884.0,27883.0,0.08546692]
[1680580639406,0.27622386,27884.0,27883.0,0.09446692]
[1680580639629,0.27622386,27884.0,27883.0,0.08546692]
[1680580640067,0.27722386,27884.0,27883.0,0.55274759]
[1680580640298,0.27722386,27884.0,27883.0,0.55292759]
[1680580644061,0.27722386,27884.0,27883.0,0.72392156]
[1680580645894,0.65795193,27884.0,27883.0,0.72392156]
[1680580646693,0.65820508,27884.0,27883.0,0.72374156]
[1680580646901,0.65795193,27884.0,27883.0,0.72392156]
[1680580647373,0.65795193,27884.0,27883.0,0.55292759]
[1680580649687,0.65795193,27884.0,27883.0,0.59572119]
[1680580649688,0.20002386,27884.0,27883.0,0.59572119]
[1680580649907,0.20002386,27884.0,27883.0,0.71801754]
[1680580650129,0.20002386,27884.0,27883.0,0.76076604]
[1680580650319,0.20002386,27884.0,27883.0,0.81427904]
[1680580650550,0.20002386,27884.0,27883.0,0.76076604]
[1680580650760,0.20002386,27884.0,27883.0,0.83894924]
[1680580650977,0.20002386,27884.0,27883.0,0.83800924]
[1680580651205,0.19902386,27884.0,27883.0,0.83806924]
[1680580651343,0.20002386,27884.0,27883.0,0.88829224]
[1680580651995,0.19902386,27884.0,27883.0,0.88829224]
[1680580652200,0.19902386,27884.0,27883.0,1.27943724]
[1680580652439,0.19902386,27884.0,27883.0,1.26509224]
[1680580652865,0.19902386,27884.0,27883.0,1.28027724]
[1680580653069,0.19902386,27884.0,27883.0,1.27943724]
[1680580653281,0.00025315,27886.0,27883.0,0.94539842]
[1680580653486,0.19902386,27887.0,27885.0,0.59118124]
[1680580653729,0.19917386,27887.0,27886.0,0.69037131]
[1680580653919,0.19902386,27887.0,27886.0,0.69037131]
[1680580654205,0.19902386,27887.0,27886.0,0.69055131]
[1680580654425,0.19902386,27887.0,27886.0,0.73944651]
[1680580654849,0.19902386,27887.0,27886.0,0.79132066]
[1680580655280,0.19902386,27887.0,27886.0,0.92462505]
[1680580656369,0.19902386,27887.0,27886.0,0.83269785]
[1680580657430,0.19902386,27887.0,27886.0,0.84704185]
[1680580658678,0.19902386,27887.0,27886.0,0.84686185]
[1680580658925,0.19902386,27887.0,27886.0,0.84704185]
[1680580659133,0.19902386,27887.0,27886.0,0.82204185]
[1680580659348,0.19902386,27887.0,27886.0,1.0155106]
[1680580659992,0.19902386,27887.0,27886.0,1.01550905]
[1680580660446,0.19902386,27887.0,27886.0,1.00098505]
[1680580660657,0.19902386,27887.0,27886.0,1.01532905]
[1680580660873,0.19902386,27887.0,27886.0,1.00116505]
[1680580663773,0.19902386,27887.0,27886.0,1.01550905]
[1680580664269,0.19902386,27887.0,27886.0,0.78678381]
[1680580664478,0.19902386,27887.0,27886.0,1.00116505]
[1680580665292,0.19902386,27887.0,27886.0,1.17792781]
[1680580665723,0.19902386,27887.0,27886.0,1.16340381]
[1680580665935,0.19902386,27887.0,27886.0,1.16358381]
[1680580668521,0.19902386,27887.0,27886.0,1.37778505]
[1680580668735,0.19902386,27887.0,27886.0,1.35596505]
[1680580669184,0.19902386,27887.0,27886.0,1.37796505]
[1680580671229,0.19902386,27887.0,27886.0,1.20649785]
[1680580672347,0.19902386,27887.0,27886.0,1.18449785]
[1680580672540,0.19902386,27887.0,27886.0,1.33238204]
[1680580672769,0.19902386,27887.0,27886.0,1.38393539]
[1680580672987,0.19902386,27887.0,27886.0,1.16955415]
[1680580673222,0.19902386,27887.0,27886.0,0.79275415]
[1680580673819,0.19902386,27887.0,27886.0,0.76475415]
[1680580674675,0.19902386,27887.0,27886.0,0.76463415]
[1680580674892,0.19902386,27887.0,27886.0,0.78675415]
[1680580675998,0.54856388,27887.0,27886.0,0.61716476]
[1680580676154,0.54856388,27887.0,27886.0,0.66839476]
[1680580676357,0.54856388,27887.0,27886.0,0.66903776]
[1680580676575,0.54856388,27887.0,27886.0,0.61716476]
[1680580676777,0.19902386,27887.0,27886.0,0.61716476]
[1680580677012,0.19902386,27887.0,27886.0,0.96133337]
[1680580678752,0.19902386,27887.0,27886.0,1.00427707]
[1680580679899,0.19902386,27887.0,27886.0,1.38107707]
[1680580681199,0.19902386,27887.0,27886.0,1.55248054]
[1680580682958,0.19902386,27887.0,27886.0,1.55248266]
[1680580685443,0.19902386,27887.0,27886.0,1.55230266]
[1680580685673,0.19902386,27887.0,27886.0,1.55248266]
[1680580686126,0.02313315,27888.0,27887.0,9.046e-05]
[1680580686357,0.02288,27888.0,27887.0,1.66682558]
[1680580686587,0.02288,27888.0,27887.0,1.9668858]
[1680580687022,0.02288,27888.0,27887.0,1.9670058]
[1680580687293,0.02288,27888.0,27887.0,1.9670658]
[1680580687943,0.02288,27888.0,27887.0,1.9950658]
[1680580688162,0.02288,27888.0,27887.0,1.78083747]
[1680580688397,0.02288,27888.0,27887.0,1.99505727]
[1680580689556,0.02288,27888.0,27887.0,1.99486476]
[1680580690296,0.02288,27888.0,27887.0,1.99484958]
[1680580690441,0.02288,27888.0,27887.0,1.78083747]
[1680580691092,0.02280234,27888.0,27887.0,1.78065747]
[1680580697372,0.02280234,27888.0,27887.0,0.85552391]
[1680580698465,0.02280234,27888.0,27887.0,0.82752391]
[1680580698659,0.02280234,27888.0,27887.0,0.85552391]
[1680580698874,0.02280234,27888.0,27887.0,0.82752391]
[1680580699084,0.02280234,27888.0,27887.0,0.85552391]
[1680580702424,0.02280234,27888.0,27887.0,1.55780821]
[1680580702644,0.02280234,27888.0,27887.0,1.30131725]
[1680580703068,0.02280234,27888.0,27887.0,1.5763347]
[1680580703303,0.02280234,27888.0,27887.0,1.30131725]
[1680580703760,0.02280234,27888.0,27887.0,1.56232157]
[1680580703979,0.02280234,27888.0,27887.0,1.30131725]
[1680580704186,0.02280234,27888.0,27887.0,1.81878197]
[1680580705916,0.02288,27889.0,27888.0,0.58097879]
[1680580706121,0.02288,27889.0,27888.0,1.640996]
[1680580706562,0.02288,27889.0,27888.0,1.540996]
[1680580706769,0.02288,27889.0,27888.0,1.361716]
[1680580706985,0.02288,27889.0,27888.0,1.562996]
[1680580707649,0.02288,27889.0,27888.0,1.636396]
[1680580709137,0.02288,27889.0,27888.0,1.457116]
[1680580709570,0.02288,27889.0,27888.0,1.636396]
[1680580714470,0.02288,27889.0,27888.0,1.614396]
[1680580714689,0.02288,27889.0,27888.0,1.642396]
[1680580715603,0.02288,27889.0,27888.0,1.614396]
[1680580715826,0.02288,27889.0,27888.0,1.642396]
[1680580716289,0.02288,27889.0,27888.0,1.89292777]
[1680580716500,0.02288,27889.0,27888.0,1.86492777]
[1680580716733,0.02288,27889.0,27888.0,2.12213496]
[1680580716925,0.02288,27889.0,27888.0,2.15013496]
[1680580717092,0.02288,27889.0,27888.0,2.12213496]
[1680580717265,0.02288,27889.0,27888.0,1.86492777]
[1680580717493,0.02288,27889.0,27888.0,1.89292777]
[1680580718792,0.02288,27889.0,27888.0,2.21274319]
[1680580719011,0.02288,27889.0,27888.0,1.89292777]
[1680580719228,0.02288,27889.0,27888.0,2.18479476]
[1680580719441,0.02288,27889.0,27888.0,1.89292777]
[1680580719660,0.02288,27889.0,27888.0,2.16584432]
[1680580720120,0.02038,27889.0,27888.0,1.89292777]
[1680580720548,0.02038,27889.0,27888.0,2.14932129]
[1680580722310,0.02038,27889.0,27888.0,2.22592129]
[1680580722523,0.02038,27889.0,27888.0,1.96952777]
[1680580722958,0.02038,27889.0,27888.0,2.25659043]
[1680580723422,0.02038,27889.0,27888.0,1.96952777]
[1680580723634,0.02038,27889.0,27888.0,2.28467555]
[1680580725381,0.02038,27889.0,27888.0,2.28466555]
[1680580726977,0.02038,27889.0,27888.0,2.20806555]
[1680580728355,0.02038,27889.0,27888.0,2.20556555]
[1680580730489,0.02038,27889.0,27888.0,1.99760955]
[1680580730694,0.02038,27889.0,27888.0,1.98326655]
[1680580731213,0.01788,27889.0,27888.0,1.98326655]
[1680580732491,0.01788,27889.0,27888.0,1.62855599]
[1680580733688,0.0176943,27889.0,27888.0,1.62855599]
[1680580740550,0.0176943,27889.0,27888.0,1.37145067]
[1680580740762,0.0176943,27889.0,27888.0,1.62851949]
[1680580741809,0.0176943,27889.0,27888.0,1.52266282]
[1680580742445,0.0176943,27889.0,27888.0,1.265594]
[1680580743329,0.0176943,27889.0,27888.0,1.52269642]
[1680580744523,0.0176943,27889.0,27888.0,1.265594]
[1680580751066,0.0176943,27889.0,27888.0,0.52494722]
[1680580752013,0.0176943,27889.0,27888.0,0.57910722]
[1680580753226,0.74321741,27889.0,27888.0,0.52494722]
[1680580753445,0.74321741,27889.0,27888.0,0.09986621]
[1680580753446,0.35635645,27889.0,27888.0,0.09986621]
[1680580753671,0.1,27888.0,27886.0,0.21472902]
[1680580753923,0.19902386,27887.0,27885.0,0.21472902]
[1680580754114,0.19902386,27887.0,27885.0,0.21454902]
[1680580754115,0.39078693,27886.0,27885.0,0.21454902]
[1680580754336,0.39078693,27886.0,27883.0,0.25763275]
[1680580754337,0.19902386,27884.0,27883.0,0.00018]
[1680580754570,0.80479067,27884.0,27881.0,0.21481289]
[1680580754789,0.4631,27882.0,27881.0,0.00018]
[1680580755025,0.470273,27882.0,27880.0,0.21481289]
[1680580755244,0.60619386,27881.0,27880.0,0.00018]
[1680580755467,0.62771286,27881.0,27879.0,0.00018]
[1680580755697,0.1544,27879.0,27878.0,0.42360187]
[1680580755938,0.89047504,27879.0,27878.0,0.00012]
[1680580756168,0.89047504,27879.0,27872.0,0.31059166]
[1680580756169,0.19779386,27875.0,27873.0,0.21481289]
[1680580756393,0.14189681,27874.0,27873.0,0.21481289]
[1680580756638,0.75717181,27874.0,27873.0,0.00018]
[1680580756848,0.1544,27873.0,27872.0,0.42368647]
[1680580757081,0.71073875,27873.0,27872.0,0.42386647]
[1680580757296,0.73226375,27873.0,27872.0,0.00018]
[1680580757508,0.73226375,27873.0,27871.0,0.0208]
[1680580757735,0.50709386,27872.0,27871.0,0.0208]
[1680580757953,0.61426886,27872.0,27871.0,0.0208]
[1680580758176,0.7943668,27872.0,27871.0,0.0208]
[1680580758631,0.6943668,27872.0,27871.0,0.0218]
[1680580758843,0.6943668,27872.0,27871.0,0.0208]
[1680580759108,0.7213668,27872.0,27871.0,0.0218]
[1680580759345,0.7213668,27872.0,27869.0,0.33173906]
[1680580759346,0.1,27871.0,27869.0,0.0208]
[1680580759565,0.3074,27870.0,27869.0,0.0208]
[1680580759781,0.784628,27870.0,27869.0,0.0208]
[1680580759993,0.884628,27870.0,27869.0,0.0208]
[1680580760845,0.884628,27870.0,27869.0,0.0218]
[1680580760846,0.898628,27870.0,27869.0,0.0218]
[1680580761043,1.06767466,27870.0,27869.0,0.0218]
[1680580761519,1.0672431,27870.0,27869.0,0.0218]
[1680580761953,1.47289981,27870.0,27869.0,0.0218]
[1680580762218,1.18203137,27870.0,27869.0,0.0218]
[1680580762431,0.78487466,27870.0,27869.0,0.0218]
[1680580762647,1.19241172,27870.0,27869.0,0.0218]
[1680580762864,0.78487466,27870.0,27869.0,0.0218]
[1680580763089,1.19602355,27870.0,27869.0,0.0218]
[1680580767381,0.78487466,27870.0,27869.0,0.0218]
[1680580768074,0.2,27869.0,27866.0,0.0208]
[1680580768305,0.41872986,27867.0,27866.0,0.0208]
[1680580768760,0.71872986,27867.0,27866.0,0.0208]
[1680580768983,0.81872986,27867.0,27866.0,0.0208]
[1680580769441,0.71872986,27867.0,27866.0,0.0208]
[1680580769931,0.74572986,27867.0,27866.0,0.0208]
[1680580770166,0.84317691,27867.0,27866.0,0.0208]
[1680580770384,0.87017691,27867.0,27866.0,0.0208]
[1680580771545,0.87776991,27867.0,27866.0,0.0208]
[1680580772027,0.97776991,27867.0,27866.0,0.0208]
[1680580772458,0.95076991,27867.0,27866.0,0.0208]
[1680580772687,0.97774691,27867.0,27866.0,0.0208]
[1680580773132,1.11638426,27867.0,27866.0,0.0208]
[1680580773353,1.14338426,27867.0,27866.0,0.0208]
[1680580773796,0.72459286,27867.0,27866.0,0.0208]
[1680580773987,1.14478655,27867.0,27866.0,0.0208]
[1680580774434,1.07144773,27867.0,27866.0,0.0208]
[1680580774853,1.21148852,27867.0,27866.0,0.0208]
[1680580775926,1.18448852,27867.0,27866.0,0.0208]
[1680580776138,1.21148852,27867.0,27866.0,0.0208]
[1680580776568,1.18448852,27867.0,27866.0,0.0208]
[1680580776782,1.21148852,27867.0,27866.0,0.0208]
[1680580777211,1.07144773,27867.0,27866.0,0.0208]
[1680580777847,1.04444773,27867.0,27866.0,0.0208]
[1680580778012,1.07144773,27867.0,27866.0,0.0208]
[1680580778268,1.04444773,27867.0,27866.0,0.0208]
[1680580778461,1.19382621,27867.0,27866.0,0.0208]
[1680580778681,1.31910485,27867.0,27866.0,0.0208]
[1680580778868,1.34610485,27867.0,27866.0,0.0208]
[1680580779029,1.31910485,27867.0,27866.0,0.0208]
[1680580779476,1.34610485,27867.0,27866.0,0.0208]
[1680580779711,1.31910485,27867.0,27866.0,0.0208]
[1680580780055,0.9498715,27867.0,27866.0,0.0208]
[1680580780659,0.9768715,27867.0,27866.0,0.0208]
[1680580780877,0.9498715,27867.0,27866.0,0.0208]
[1680580781091,0.9768715,27867.0,27866.0,0.0208]
[1680580781312,1.31541765,27867.0,27866.0,0.0208]
[1680580781516,0.9768715,27867.0,27866.0,0.0208]
[1680580781658,1.39678416,27867.0,27866.0,0.0208]
[1680580781872,1.36978416,27867.0,27866.0,0.0208]
[1680580782078,0.9768715,27867.0,27866.0,0.0208]
[1680580782282,1.38762492,27867.0,27866.0,0.0208]
[1680580782484,0.9768715,27867.0,27866.0,0.0208]
[1680580782886,1.13574823,27867.0,27866.0,0.0208]
[1680580783286,1.11760162,27867.0,27866.0,0.0208]
[1680580783509,0.87150987,27867.0,27866.0,0.0208]
[1680580783725,0.88586287,27867.0,27866.0,0.0208]
[1680580783954,0.91286287,27867.0,27866.0,0.0208]
[1680580784172,0.85911602,27867.0,27866.0,0.0208]
[1680580784383,0.88611602,27867.0,27866.0,0.0208]
[1680580784672,0.88611602,27867.0,27864.0,0.0208]
[1680580784673,0.2,27866.0,27864.0,0.0208]
[1680580784890,0.32194,27865.0,27864.0,0.00709781]
[1680580785119,0.1,27864.0,27860.0,0.0208]
[1680580785352,0.1716,27861.0,27860.0,0.0208]
[1680580785572,0.193134,27861.0,27860.0,0.0208]
[1680580786007,0.68147668,27861.0,27860.0,0.0208]
[1680580786224,0.193134,27861.0,27860.0,0.0208]
[1680580786461,0.301634,27861.0,27860.0,0.0208]
[1680580786683,0.29169402,27861.0,27860.0,0.0208]
[1680580786909,0.20599402,27861.0,27860.0,0.0208]
[1680580787157,0.57518303,27861.0,27860.0,0.0208]
[1680580787604,0.54818303,27861.0,27860.0,0.0208]
[1680580787814,0.57518303,27861.0,27860.0,0.0208]
[1680580788087,0.54818303,27861.0,27860.0,0.0208]
[1680580788974,0.20599402,27861.0,27860.0,0.0208]
[1680580789205,0.50599402,27861.0,27860.0,0.0208]
[1680580789676,0.47899402,27861.0,27860.0,0.0208]
[1680580789910,0.60599402,27861.0,27860.0,0.0208]
[1680580790129,0.87359133,27861.0,27860.0,0.0208]
[1680580790377,0.83753131,27861.0,27860.0,0.0208]
[1680580790611,0.81053131,27861.0,27860.0,0.0208]
[1680580790818,0.83673131,27861.0,27860.0,0.0208]
[1680580791966,0.80973131,27861.0,27860.0,0.0208]
[1680580792184,0.83673131,27861.0,27860.0,0.0208]
[1680580792397,0.95330106,27861.0,27860.0,0.0208]
[1680580796374,0.83673131,27861.0,27860.0,0.0208]
[1680580798568,0.36993216,27861.0,27860.0,0.0208]
[1680580799009,0.07018531,27861.0,27860.0,0.0208]
[1680580799217,0.37732616,27861.0,27860.0,0.0208]
[1680580799441,0.37732616,27861.0,27860.0,0.10606048]
[1680580799442,0.35057931,27861.0,27860.0,0.10606048]
[1680580799654,0.37757931,27861.0,27860.0,0.10606048]
[1680580801243,0.33443115,27861.0,27860.0,0.10553225]
[1680580801468,0.30743115,27861.0,27860.0,0.1896303]
[1680580801696,0.33443115,27861.0,27860.0,0.6145254]
[1680580802404,0.33443115,27861.0,27860.0,0.82915829]
[1680580802667,0.33443115,27861.0,27860.0,0.6145254]
[1680580802922,0.41003986,27861.0,27860.0,0.82915829]
[1680580803139,0.30743115,27861.0,27860.0,0.6135254]
[1680580803356,0.33443115,27861.0,27860.0,0.65843161]
[1680580804278,0.334178,27861.0,27860.0,0.65843161]
[1680580804966,0.334178,27861.0,27860.0,0.82998084]
[1680580805400,0.40978671,27861.0,27860.0,0.83001664]
[1680580805841,0.40978671,27861.0,27860.0,0.65843161]
[1680580806517,0.40978671,27861.0,27860.0,0.83002114]
[1680580806812,0.40978671,27861.0,27860.0,0.65843161]
[1680580807027,0.334178,27861.0,27860.0,0.65843161]
[1680580807248,0.334178,27861.0,27860.0,0.61539266]
[1680580807959,0.027,27861.0,27860.0,0.44397872]
[1680580808200,0.027,27861.0,27860.0,0.75536519]
[1680580808663,0.02518376,27861.0,27860.0,0.75536519]
[1680580809089,0.02518376,27861.0,27860.0,0.75436519]
[1680580809303,0.007177,27863.0,27860.0,0.75554519]
[1680580809543,0.014,27861.0,27860.0,0.27941009]
[1680580809765,0.014,27861.0,27860.0,0.33242409]
[1680580809978,0.007177,27864.0,27860.0,0.33142409]
[1680580810230,0.007177,27864.0,27863.0,0.08580574]
[1680580810443,0.007177,27864.0,27863.0,0.21451434]
[1680580811333,0.007177,27864.0,27862.0,0.21471237]
[1680580811559,0.007177,27864.0,27862.0,0.21453237]
[1680580811786,0.033177,27864.0,27863.0,0.001]
[1680580812021,0.033177,27864.0,27862.0,0.51712428]
[1680580812022,0.007177,27864.0,27862.0,0.51712428]
[1680580812209,0.007177,27864.0,27863.0,0.11133394]
[1680580812210,0.033177,27864.0,27863.0,0.11133394]
[1680580812865,0.007177,27864.0,27863.0,0.11133394]
[1680580813108,0.033177,27864.0,27863.0,0.11233394]
[1680580814423,0.026,27864.0,27863.0,0.001]
[1680580814687,0.026,27864.0,27863.0,0.09392377]
[1680580814923,0.026,27864.0,27863.0,0.51813759]
[1680580815174,0.026,27864.0,27863.0,0.47527848]
[1680580815579,0.026,27864.0,27863.0,0.42335348]
[1680580816058,0.033177,27864.0,27863.0,0.42341348]
[1680580816273,0.033177,27864.0,27863.0,0.42353348]
[1680580816522,0.026,27864.0,27863.0,0.42353348]
[1680580816736,0.026,27864.0,27863.0,0.55206208]
[1680580817204,0.026,27864.0,27863.0,0.66079055]
[1680580817433,0.026,27864.0,27863.0,0.70084855]
[1680580817881,0.026,27864.0,27863.0,0.80098701]
[1680580818110,0.026,27864.0,27863.0,0.83942816]
[1680580818330,0.00885339,27867.0,27863.0,0.58547267]
[1680580818567,0.007,27864.0,27863.0,0.10841846]
[1680580818790,0.00885339,27867.0,27863.0,0.15945146]
[1680580819028,0.001,27864.0,27863.0,0.53101253]
[1680580819250,0.00885339,27867.0,27863.0,0.58178253]
[1680580819465,0.01585339,27867.0,27866.0,0.21459252]
[1680580819684,0.00885339,27867.0,27866.0,0.21459252]
[1680580819916,0.33872037,27870.0,27866.0,0.60504458]
[1680580820133,0.33872037,27870.0,27867.0,0.0858367]
[1680580820134,0.00742915,27870.0,27867.0,0.0858367]
[1680580820374,0.007176,27870.0,27867.0,0.37478674]
[1680580820631,0.00025315,27870.0,27868.0,0.0069]
[1680580820859,0.007175,27871.0,27868.0,0.0069]
[1680580820860,0.00025315,27873.0,27869.0,0.39330251]
[1680580821084,0.44328188,27874.0,27870.0,0.13691305]
[1680580821315,0.44353503,27874.0,27871.0,0.052525]
[1680580821532,0.44353503,27874.0,27870.0,0.08581005]
[1680580821981,0.44453503,27874.0,27870.0,0.17520126]
[1680580822211,0.44353503,27874.0,27870.0,0.08581005]
[1680580822451,0.44328188,27874.0,27872.0,0.0069]
[1680580822685,0.01012885,27874.0,27872.0,0.0069]
[1680580822947,0.01012885,27874.0,27873.0,0.32992442]
[1680580822948,0.0098757,27874.0,27873.0,0.32992442]
[1680580823415,0.0088757,27874.0,27873.0,0.32992442]
[1680580823641,0.0158757,27874.0,27873.0,0.32992442]
[1680580823868,0.0088757,27874.0,27873.0,0.32992442]
[1680580824086,0.0228757,27874.0,27873.0,0.33092442]
[1680580824314,0.0228757,27874.0,27873.0,0.36472486]
[1680580824548,0.014,27874.0,27873.0,0.33772442]
[1680580825009,0.00025315,27876.0,27873.0,0.33772442]
[1680580825010,0.30025315,27876.0,27873.0,0.33672442]
[1680580825232,0.014,27874.0,27873.0,0.0078]
[1680580825976,0.014,27874.0,27873.0,0.15202205]
[1680580826203,0.014,27874.0,27873.0,0.0078]
[1680580827347,0.014,27874.0,27873.0,0.33289132]
[1680580828250,0.021175,27874.0,27873.0,0.33289132]
[1680580828476,0.014,27874.0,27873.0,0.33289132]
[1680580829623,0.01425315,27874.0,27873.0,0.33289132]
[1680580830971,0.01389021,27874.0,27873.0,0.33289132]
[1680580834070,0.01389021,27874.0,27873.0,0.34724132]
[1680580834285,0.01389021,27874.0,27873.0,0.38567332]
[1680580834522,0.01389021,27874.0,27873.0,0.33289132]
[1680580839230,0.40097325,27874.0,27873.0,0.0078]
[1680580839444,0.40817625,27874.0,27873.0,0.001]
[1680580841004,0.37086592,27874.0,27873.0,0.001]
[1680580844840,0.34333634,27874.0,27873.0,0.001]
[1680580845073,0.33613334,27874.0,27873.0,0.001]
[1680580845530,0.00025315,27875.0,27873.0,0.001]
[1680580845760,0.099549,27877.0,27873.0,0.19819963]
[1680580845761,0.74050687,27877.0,27873.0,0.19819963]
[1680580845985,0.40774209,27876.0,27873.0,0.21801959]
[1680580846212,0.40799524,27876.0,27873.0,0.19819963]